[Event "Titled Tuesday Blitz August 08 Late 2023"]
[White "Tsvetkov, Andrey"]
[Black "whiteglovethief"]
[WhiteFideId "34139360"]
[WhiteElo "2632"]
[BlackElo "2450"]
[Result "1-0"]
[Round "3"]
[TimeControl "180+1"]
[Date "2023.08.08"]
[WhiteClock "0:00:51"]
[BlackClock "0:00:31"]
[Board "85"]

1. d4 {[%clk 0:03:00]}  d5 {[%clk 0:02:58]} 2. c4 {[%clk 0:03:01]}  e6 {[%clk 0:02:59]} 3. Nc3 {[%clk 0:03:01]}  h6 {[%clk 0:02:58]} 4. Nf3 {[%clk 0:02:56]}  Nf6 {[%clk 0:02:55]} 5. g3 {[%clk 0:02:57]}  Bd6 {[%clk 0:02:53]} 6. Bg2 {[%clk 0:02:56]}  O-O {[%clk 0:02:53]} 7. O-O {[%clk 0:02:56]}  Nc6 {[%clk 0:02:50]} 8. b3 {[%clk 0:02:53]}  dxc4 {[%clk 0:02:49]} 9. bxc4 {[%clk 0:02:54]}  e5 {[%clk 0:02:49]} 10. e3 {[%clk 0:02:38]}  Re8 {[%clk 0:02:45]} 11. Bb2 {[%clk 0:02:33]}  Bg4 {[%clk 0:02:42]} 12. h3 {[%clk 0:02:29]}  exd4 {[%clk 0:02:40]} 13. exd4 {[%clk 0:02:28]}  Bh5 {[%clk 0:02:28]} 14. g4 {[%clk 0:02:27]}  Bg6 {[%clk 0:02:29]} 15. Re1 {[%clk 0:02:12]}  Rxe1+ {[%clk 0:02:28]} 16. Qxe1 {[%clk 0:02:13]}  Nb4 {[%clk 0:02:28]} 17. Rd1 {[%clk 0:01:27]}  Nd3 {[%clk 0:02:25]} 18. Qd2 {[%clk 0:01:28]}  Bf4 {[%clk 0:02:24]} 19. Qe2 {[%clk 0:01:28]}  Qf8 {[%clk 0:02:06]} 20. Rxd3 {[%clk 0:01:26]}  Bxd3 {[%clk 0:02:01]} 21. Qxd3 {[%clk 0:01:27]}  Qb4 {[%clk 0:01:55]} 22. Ba1 {[%clk 0:01:27]}  Re8 {[%clk 0:01:54]} 23. Ne2 {[%clk 0:01:11]}  Bd6 {[%clk 0:01:28]} 24. c5 {[%clk 0:01:02]}  Bf8 {[%clk 0:01:29]} 25. Nf4 {[%clk 0:01:01]}  g5 {[%clk 0:01:12]} 26. Nh5 {[%clk 0:00:56]}  Nd5 {[%clk 0:00:55]} 27. Ne5 {[%clk 0:00:50]}  Nf4 {[%clk 0:00:31]} 28. Nf6+ {[%clk 0:00:49]}  Kg7 {[%clk 0:00:31]} 29. Qh7+ {[%clk 0:00:50]}  Kxf6 {[%clk 0:00:31]} 30. Qxf7# {[%clk 0:00:51]} 1-0


[Site "https://www.chess.com"]

[Event "Titled Tuesday Blitz August 08 Late 2023"]
[White "Ozates, Tuna"]
[Black "Kubatko, Ivan"]
[WhiteFideId "6354521"]
[BlackFideId "24111473"]
[WhiteElo "2618"]
[BlackElo "2440"]
[Result "0-1"]
[Round "3"]
[TimeControl "180+1"]
[Date "2023.08.08"]
[WhiteClock "0:00:39"]
[BlackClock "0:00:49"]
[Board "88"]

1. d4 {[%clk 0:03:00]}  d5 {[%clk 0:02:49]} 2. c4 {[%clk 0:02:58]}  e6 {[%clk 0:02:49]} 3. Nc3 {[%clk 0:02:58]}  c5 {[%clk 0:02:48]} 4. cxd5 {[%clk 0:02:54]}  cxd4 {[%clk 0:02:49]} 5. Qxd4 {[%clk 0:02:51]}  Nc6 {[%clk 0:02:47]} 6. Qd1 {[%clk 0:02:42]}  exd5 {[%clk 0:02:47]} 7. Qc2 {[%clk 0:02:37]}  d4 {[%clk 0:02:46]} 8. Ne4 {[%clk 0:02:32]}  Bf5 {[%clk 0:02:41]} 9. a3 {[%clk 0:02:23]}  Qd5 {[%clk 0:02:31]} 10. f3 {[%clk 0:02:14]}  Rc8 {[%clk 0:02:22]} 11. Bf4 {[%clk 0:02:10]}  Nb4 {[%clk 0:02:10]} 12. Qxc8+ {[%clk 0:02:04]}  Bxc8 {[%clk 0:02:10]} 13. axb4 {[%clk 0:02:05]}  Bxb4+ {[%clk 0:02:10]} 14. Kf2 {[%clk 0:02:06]}  f5 {[%clk 0:01:58]} 15. Ng3 {[%clk 0:01:45]}  Bc5 {[%clk 0:01:41]} 16. Nh3 {[%clk 0:01:40]}  h6 {[%clk 0:01:36]} 17. Bd2 {[%clk 0:01:34]}  g5 {[%clk 0:01:33]} 18. Ra5 {[%clk 0:01:32]}  b6 {[%clk 0:01:29]} 19. Rxa7 {[%clk 0:01:30]}  Nf6 {[%clk 0:01:11]} 20. b4 {[%clk 0:01:24]}  Bd6 {[%clk 0:01:08]} 21. e4 {[%clk 0:01:16]}  dxe3+ {[%clk 0:00:54]} 22. Bxe3 {[%clk 0:01:10]}  f4 {[%clk 0:00:53]} 23. Bxf4 {[%clk 0:00:54]}  gxf4 {[%clk 0:00:52]} 24. Ne4 {[%clk 0:00:48]}  Nxe4+ {[%clk 0:00:51]} 25. fxe4 {[%clk 0:00:48]}  Qd4+ {[%clk 0:00:50]} 26. Ke1 {[%clk 0:00:40]}  Bxb4+ {[%clk 0:00:49]} 27. Ke2 {[%clk 0:00:39]}  Qe3+ {[%clk 0:00:49]} 0-1


[Site "https://www.chess.com"]

[Event "Titled Tuesday Blitz August 08 Late 2023"]
[White "Pantev, Veselin"]
[Black "Swicarz, Maciej"]
[WhiteFideId "2901390"]
[BlackFideId "1113585"]
[WhiteElo "2617"]
[BlackElo "2437"]
[Result "1/2-1/2"]
[Round "3"]
[TimeControl "180+1"]
[Date "2023.08.08"]
[WhiteClock "0:00:53"]
[BlackClock "0:00:06"]
[Board "89"]

1. d4 {[%clk 0:03:00]}  Nf6 {[%clk 0:02:59]} 2. Nf3 {[%clk 0:02:59]}  e6 {[%clk 0:02:58]} 3. Bf4 {[%clk 0:02:59]}  c5 {[%clk 0:02:57]} 4. e3 {[%clk 0:02:59]}  Nc6 {[%clk 0:02:56]} 5. c3 {[%clk 0:02:59]}  Qb6 {[%clk 0:02:53]} 6. Qb3 {[%clk 0:02:59]}  Qxb3 {[%clk 0:02:51]} 7. axb3 {[%clk 0:02:59]}  a6 {[%clk 0:02:45]} 8. h3 {[%clk 0:02:57]}  cxd4 {[%clk 0:02:37]} 9. exd4 {[%clk 0:02:56]}  Be7 {[%clk 0:02:31]} 10. Nbd2 {[%clk 0:02:54]}  O-O {[%clk 0:02:29]} 11. Bd3 {[%clk 0:02:54]}  Ne8 {[%clk 0:02:22]} 12. b4 {[%clk 0:02:52]}  Ra7 {[%clk 0:02:10]} 13. Nb3 {[%clk 0:02:49]}  d6 {[%clk 0:02:05]} 14. Be3 {[%clk 0:02:44]}  d5 {[%clk 0:01:56]} 15. Nc5 {[%clk 0:02:43]}  f6 {[%clk 0:01:47]} 16. Bf4 {[%clk 0:02:39]}  Nd6 {[%clk 0:01:37]} 17. Kd2 {[%clk 0:02:36]}  e5 {[%clk 0:01:24]} 18. dxe5 {[%clk 0:02:18]}  fxe5 {[%clk 0:01:24]} 19. Bxe5 {[%clk 0:02:17]}  Rxf3 {[%clk 0:01:04]} 20. Bxd6 {[%clk 0:02:17]}  Rxd3+ {[%clk 0:01:04]} 21. Nxd3 {[%clk 0:02:15]}  Bxd6 {[%clk 0:01:04]} 22. f4 {[%clk 0:02:12]}  Bf5 {[%clk 0:01:02]} 23. Rhf1 {[%clk 0:02:06]}  d4 {[%clk 0:00:52]} 24. b5 {[%clk 0:01:52]}  axb5 {[%clk 0:00:48]} 25. Rxa7 {[%clk 0:01:52]}  dxc3+ {[%clk 0:00:48]} 26. bxc3 {[%clk 0:01:49]}  Nxa7 {[%clk 0:00:48]} 27. g4 {[%clk 0:01:47]}  Bd7 {[%clk 0:00:41]} 28. Rb1 {[%clk 0:01:38]}  h5 {[%clk 0:00:33]} 29. f5 {[%clk 0:01:36]}  hxg4 {[%clk 0:00:33]} 30. hxg4 {[%clk 0:01:36]}  g6 {[%clk 0:00:30]} 31. fxg6 {[%clk 0:01:35]}  Bxg4 {[%clk 0:00:28]} 32. Ke3 {[%clk 0:01:25]}  Bf5 {[%clk 0:00:27]} 33. Ra1 {[%clk 0:01:20]}  Bb8 {[%clk 0:00:17]} 34. Nc5 {[%clk 0:01:15]}  Bc8 {[%clk 0:00:13]} 35. Ke4 {[%clk 0:01:06]}  Kg7 {[%clk 0:00:12]} 36. Kd5 {[%clk 0:01:04]}  Kxg6 {[%clk 0:00:10]} 37. Ne4 {[%clk 0:01:02]}  Kf7 {[%clk 0:00:09]} 38. Nd6+ {[%clk 0:01:01]}  Bxd6 {[%clk 0:00:06]} 39. Kxd6 {[%clk 0:01:01]}  Nc6 {[%clk 0:00:06]} 40. Kc7 {[%clk 0:01:00]}  Be6 {[%clk 0:00:05]} 41. Kxb7 {[%clk 0:01:00]}  Ne5 {[%clk 0:00:05]} 42. Kb6 {[%clk 0:00:59]}  Bc4 {[%clk 0:00:05]} 43. Kc5 {[%clk 0:00:59]}  Ke6 {[%clk 0:00:05]} 44. Re1 {[%clk 0:00:55]}  Kf5 {[%clk 0:00:05]} 45. Rb1 {[%clk 0:00:54]}  Nd3+ {[%clk 0:00:05]} 46. Kb6 {[%clk 0:00:53]}  Ke4 {[%clk 0:00:05]} 47. Rxb5 {[%clk 0:00:53]}  Bxb5 {[%clk 0:00:05]} 48. Kxb5 {[%clk 0:00:53]}  Ne5 {[%clk 0:00:05]} 49. c4 {[%clk 0:00:53]}  Nxc4 {[%clk 0:00:06]} 1/2-1/2


[Site "https://www.chess.com"]

[Event "Titled Tuesday Blitz August 08 Late 2023"]
[White "chessmateto"]
[Black "Tologon tegin, Semetei"]
[BlackFideId "13800574"]
[WhiteElo "2434"]
[BlackElo "2615"]
[Result "0-1"]
[Round "3"]
[TimeControl "180+1"]
[Date "2023.08.08"]
[WhiteClock "0:00:00"]
[BlackClock "0:01:26"]
[Board "90"]

1. c4 {[%clk 0:03:00]}  e5 {[%clk 0:02:57]} 2. Nc3 {[%clk 0:03:00]}  Nf6 {[%clk 0:02:57]} 3. g3 {[%clk 0:02:59]}  Bc5 {[%clk 0:02:55]} 4. Bg2 {[%clk 0:02:59]}  O-O {[%clk 0:02:55]} 5. Nf3 {[%clk 0:02:58]}  Re8 {[%clk 0:02:53]} 6. O-O {[%clk 0:02:57]}  h6 {[%clk 0:02:50]} 7. d3 {[%clk 0:02:54]}  c6 {[%clk 0:02:49]} 8. a3 {[%clk 0:02:53]}  a5 {[%clk 0:02:48]} 9. Rb1 {[%clk 0:02:47]}  d5 {[%clk 0:02:47]} 10. b4 {[%clk 0:02:47]}  axb4 {[%clk 0:02:47]} 11. axb4 {[%clk 0:02:47]}  Bf8 {[%clk 0:02:44]} 12. b5 {[%clk 0:02:32]}  d4 {[%clk 0:02:39]} 13. Na4 {[%clk 0:02:16]}  cxb5 {[%clk 0:02:38]} 14. Rxb5 {[%clk 0:01:47]}  Bd7 {[%clk 0:02:36]} 15. Nb6 {[%clk 0:01:44]}  Bxb5 {[%clk 0:02:34]} 16. Nxa8 {[%clk 0:01:44]}  Bc6 {[%clk 0:02:32]} 17. c5 {[%clk 0:01:04]}  Bxc5 {[%clk 0:02:30]} 18. Qc2 {[%clk 0:00:56]}  Nbd7 {[%clk 0:02:29]} 19. e3 {[%clk 0:00:41]}  dxe3 {[%clk 0:02:23]} 20. fxe3 {[%clk 0:00:31]}  Qxa8 {[%clk 0:02:21]} 21. d4 {[%clk 0:00:31]}  exd4 {[%clk 0:02:05]} 22. exd4 {[%clk 0:00:32]}  Bxf3 {[%clk 0:02:04]} 23. dxc5 {[%clk 0:00:28]}  Bxg2 {[%clk 0:02:03]} 24. Qxg2 {[%clk 0:00:29]}  Qa7 {[%clk 0:01:59]} 25. g4 {[%clk 0:00:23]}  Qxc5+ {[%clk 0:01:57]} 26. Kh1 {[%clk 0:00:23]}  Ne4 {[%clk 0:01:48]} 27. g5 {[%clk 0:00:21]}  hxg5 {[%clk 0:01:47]} 28. Qf3 {[%clk 0:00:17]}  Ndf6 {[%clk 0:01:46]} 29. Bb2 {[%clk 0:00:15]}  b5 {[%clk 0:01:39]} 30. Bxf6 {[%clk 0:00:08]}  Nxf6 {[%clk 0:01:39]} 31. Qh3 {[%clk 0:00:05]}  g4 {[%clk 0:01:38]} 32. Qg3 {[%clk 0:00:05]}  b4 {[%clk 0:01:37]} 33. h3 {[%clk 0:00:05]}  gxh3 {[%clk 0:01:33]} 34. Rxf6 {[%clk 0:00:00]}  Qc1+ {[%clk 0:01:26]} 0-1


[Site "https://www.chess.com"]

[Event "Titled Tuesday Blitz August 08 Late 2023"]
[White "Goldin, Alexander"]
[Black "Nilsen, Tobias Lang"]
[WhiteFideId "2019540"]
[BlackFideId "1521624"]
[WhiteElo "2614"]
[BlackElo "2431"]
[Result "1-0"]
[Round "3"]
[TimeControl "180+1"]
[Date "2023.08.08"]
[WhiteClock "0:00:15"]
[BlackClock "0:00:17"]
[Board "91"]

1. d4 {[%clk 0:02:59]}  Nf6 {[%clk 0:02:58]} 2. Nc3 {[%clk 0:02:59]}  d5 {[%clk 0:02:57]} 3. Bg5 {[%clk 0:02:59]}  Nbd7 {[%clk 0:02:36]} 4. Nf3 {[%clk 0:02:58]}  c5 {[%clk 0:02:35]} 5. e3 {[%clk 0:02:54]}  h6 {[%clk 0:02:30]} 6. Bh4 {[%clk 0:02:50]}  Qa5 {[%clk 0:02:23]} 7. Bd3 {[%clk 0:02:49]}  e6 {[%clk 0:02:22]} 8. O-O {[%clk 0:02:48]}  c4 {[%clk 0:02:21]} 9. Be2 {[%clk 0:02:47]}  b5 {[%clk 0:02:21]} 10. a3 {[%clk 0:01:58]}  Bd6 {[%clk 0:02:18]} 11. e4 {[%clk 0:01:23]}  dxe4 {[%clk 0:02:12]} 12. Nd2 {[%clk 0:01:22]}  Bb7 {[%clk 0:02:10]} 13. a4 {[%clk 0:01:22]}  a6 {[%clk 0:01:19]} 14. axb5 {[%clk 0:01:19]}  Qc7 {[%clk 0:01:19]} 15. Bg3 {[%clk 0:01:07]}  Bxg3 {[%clk 0:01:18]} 16. fxg3 {[%clk 0:01:07]}  Nb6 {[%clk 0:00:57]} 17. bxa6 {[%clk 0:01:06]}  Bxa6 {[%clk 0:00:50]} 18. Ndxe4 {[%clk 0:01:04]}  Nxe4 {[%clk 0:00:50]} 19. Nxe4 {[%clk 0:01:04]}  O-O {[%clk 0:00:50]} 20. Nc5 {[%clk 0:00:56]}  Bb5 {[%clk 0:00:46]} 21. Rxa8 {[%clk 0:00:35]}  Rxa8 {[%clk 0:00:46]} 22. c3 {[%clk 0:00:35]}  Bc6 {[%clk 0:00:32]} 23. Bh5 {[%clk 0:00:33]}  g6 {[%clk 0:00:31]} 24. Bf3 {[%clk 0:00:33]}  Bd5 {[%clk 0:00:22]} 25. Qd2 {[%clk 0:00:31]}  Kg7 {[%clk 0:00:21]} 26. Bxd5 {[%clk 0:00:25]}  Nxd5 {[%clk 0:00:20]} 27. Qe2 {[%clk 0:00:24]}  Rb8 {[%clk 0:00:20]} 28. Rf2 {[%clk 0:00:22]}  Nb6 {[%clk 0:00:16]} 29. g4 {[%clk 0:00:18]}  Qd6 {[%clk 0:00:15]} 30. h4 {[%clk 0:00:16]}  Qd5 {[%clk 0:00:15]} 31. Qe3 {[%clk 0:00:14]}  Nd7 {[%clk 0:00:15]} 32. Qf4 {[%clk 0:00:13]}  Rf8 {[%clk 0:00:13]} 33. Ne4 {[%clk 0:00:13]}  f5 {[%clk 0:00:12]} 34. gxf5 {[%clk 0:00:07]}  Rxf5 {[%clk 0:00:13]} 35. Qe3 {[%clk 0:00:07]}  Nf6 {[%clk 0:00:12]} 36. Nxf6 {[%clk 0:00:05]}  Kxf6 {[%clk 0:00:11]} 37. Qxh6 {[%clk 0:00:04]}  Rxf2 {[%clk 0:00:11]} 38. Kxf2 {[%clk 0:00:05]}  Qf5+ {[%clk 0:00:12]} 39. Kg3 {[%clk 0:00:05]}  Qd3+ {[%clk 0:00:12]} 40. Kh2 {[%clk 0:00:05]}  Qc2 {[%clk 0:00:12]} 41. Qg5+ {[%clk 0:00:06]}  Kf7 {[%clk 0:00:13]} 42. Qf4+ {[%clk 0:00:06]}  Kg7 {[%clk 0:00:13]} 43. Qe5+ {[%clk 0:00:06]}  Kf7 {[%clk 0:00:13]} 44. Qc7+ {[%clk 0:00:06]}  Kf6 {[%clk 0:00:13]} 45. Qxc4 {[%clk 0:00:07]}  Qxb2 {[%clk 0:00:14]} 46. Qf1+ {[%clk 0:00:08]}  Kg7 {[%clk 0:00:14]} 47. Qf3 {[%clk 0:00:08]}  Qd2 {[%clk 0:00:13]} 48. Qg3 {[%clk 0:00:09]}  Kh6 {[%clk 0:00:13]} 49. Qg5+ {[%clk 0:00:09]}  Qxg5 {[%clk 0:00:14]} 50. hxg5+ {[%clk 0:00:10]}  Kxg5 {[%clk 0:00:15]} 51. Kg3 {[%clk 0:00:10]}  Kf5 {[%clk 0:00:15]} 52. Kf3 {[%clk 0:00:11]}  g5 {[%clk 0:00:14]} 53. g4+ {[%clk 0:00:12]}  Kf6 {[%clk 0:00:14]} 54. Ke4 {[%clk 0:00:12]}  Ke7 {[%clk 0:00:15]} 55. Ke5 {[%clk 0:00:13]}  Kd7 {[%clk 0:00:16]} 56. c4 {[%clk 0:00:14]}  Ke7 {[%clk 0:00:16]} 57. c5 {[%clk 0:00:14]}  Kd7 {[%clk 0:00:17]} 58. Kf6 {[%clk 0:00:15]}  Kc6 {[%clk 0:00:17]} 59. Kxe6 {[%clk 0:00:15]}  Kc7 {[%clk 0:00:17]} 60. d5 {[%clk 0:00:15]}  Kd8 {[%clk 0:00:17]} 61. d6 {[%clk 0:00:15]} 1-0


[Site "https://www.chess.com"]

[Event "Titled Tuesday Blitz August 08 Late 2023"]
[White "Karas, Marek"]
[Black "Hilary46"]
[WhiteFideId "14928558"]
[WhiteElo "2430"]
[BlackElo "2613"]
[Result "0-1"]
[Round "3"]
[TimeControl "180+1"]
[Date "2023.08.08"]
[WhiteClock "0:00:00"]
[BlackClock "0:00:20"]
[Board "92"]

1. e4 {[%clk 0:02:59]}  e5 {[%clk 0:02:58]} 2. Nf3 {[%clk 0:02:58]}  Nc6 {[%clk 0:02:58]} 3. Nc3 {[%clk 0:02:59]}  Nf6 {[%clk 0:02:57]} 4. d4 {[%clk 0:02:59]}  exd4 {[%clk 0:02:57]} 5. Nxd4 {[%clk 0:02:56]}  Bb4 {[%clk 0:02:57]} 6. Nxc6 {[%clk 0:02:56]}  bxc6 {[%clk 0:02:58]} 7. Bd3 {[%clk 0:02:57]}  O-O {[%clk 0:02:58]} 8. O-O {[%clk 0:02:57]}  d5 {[%clk 0:02:59]} 9. exd5 {[%clk 0:02:57]}  cxd5 {[%clk 0:03:00]} 10. Bh6 {[%clk 0:02:57]}  gxh6 {[%clk 0:02:58]} 11. Ne2 {[%clk 0:02:51]}  Bd6 {[%clk 0:02:53]} 12. Nd4 {[%clk 0:02:49]}  c5 {[%clk 0:02:50]} 13. Nf5 {[%clk 0:02:48]}  Bxf5 {[%clk 0:02:49]} 14. Bxf5 {[%clk 0:02:48]}  Re8 {[%clk 0:02:46]} 15. Qf3 {[%clk 0:02:47]}  Rb8 {[%clk 0:02:42]} 16. b3 {[%clk 0:02:45]}  Qe7 {[%clk 0:02:24]} 17. Rad1 {[%clk 0:02:41]}  Qe5 {[%clk 0:02:21]} 18. g3 {[%clk 0:02:40]}  d4 {[%clk 0:02:18]} 19. Rfe1 {[%clk 0:02:40]}  Qd5 {[%clk 0:02:17]} 20. Qd3 {[%clk 0:02:34]}  Kg7 {[%clk 0:02:08]} 21. Bh3 {[%clk 0:02:31]}  Rxe1+ {[%clk 0:02:03]} 22. Rxe1 {[%clk 0:02:31]}  Re8 {[%clk 0:02:03]} 23. Rxe8 {[%clk 0:02:30]}  Nxe8 {[%clk 0:02:04]} 24. Bg2 {[%clk 0:02:27]}  Qe5 {[%clk 0:02:04]} 25. Bf3 {[%clk 0:02:24]}  Nf6 {[%clk 0:02:03]} 26. Qa6 {[%clk 0:02:21]}  Qe7 {[%clk 0:02:02]} 27. Kg2 {[%clk 0:02:19]}  Ne4 {[%clk 0:01:54]} 28. Qd3 {[%clk 0:02:13]}  Ng5 {[%clk 0:01:52]} 29. Ba8 {[%clk 0:02:09]}  Qf6 {[%clk 0:01:41]} 30. h4 {[%clk 0:02:05]}  Ne6 {[%clk 0:01:40]} 31. Qe4 {[%clk 0:02:03]}  Qe5 {[%clk 0:01:32]} 32. Qg4+ {[%clk 0:01:58]}  Kf8 {[%clk 0:01:32]} 33. Qf3 {[%clk 0:01:55]}  a5 {[%clk 0:01:18]} 34. Bd5 {[%clk 0:01:52]}  Ke7 {[%clk 0:01:11]} 35. Be4 {[%clk 0:01:50]}  Qg7 {[%clk 0:01:05]} 36. Bf5 {[%clk 0:01:43]}  Qf6 {[%clk 0:00:59]} 37. Qb7+ {[%clk 0:01:39]}  Kf8 {[%clk 0:00:58]} 38. Bxh7 {[%clk 0:01:35]}  Kg7 {[%clk 0:00:57]} 39. Bd3 {[%clk 0:01:30]}  Qe5 {[%clk 0:00:47]} 40. Qf3 {[%clk 0:01:26]}  Nc7 {[%clk 0:00:43]} 41. Qg4+ {[%clk 0:01:22]}  Kf8 {[%clk 0:00:43]} 42. Qc8+ {[%clk 0:01:21]}  Ke7 {[%clk 0:00:43]} 43. Qg4 {[%clk 0:01:14]}  Nd5 {[%clk 0:00:39]} 44. Bc4 {[%clk 0:01:07]}  Nc3 {[%clk 0:00:37]} 45. Qc8 {[%clk 0:00:53]}  Qe4+ {[%clk 0:00:34]} 46. Kg1 {[%clk 0:00:47]}  Qf3 {[%clk 0:00:23]} 47. Qg8 {[%clk 0:00:00]}  Ne4 {[%clk 0:00:20]} 0-1


[Site "https://www.chess.com"]

[Event "Titled Tuesday Blitz August 08 Late 2023"]
[White "Golubev, Mikhail"]
[Black "Sliwicki, Damian"]
[WhiteFideId "14100983"]
[BlackFideId "1127128"]
[WhiteElo "2613"]
[BlackElo "2429"]
[Result "1/2-1/2"]
[Round "3"]
[TimeControl "180+1"]
[Date "2023.08.08"]
[WhiteClock "0:00:05"]
[BlackClock "0:00:13"]
[Board "93"]

1. e4 {[%clk 0:03:00]}  c5 {[%clk 0:02:44]} 2. Ne2 {[%clk 0:02:59]}  g6 {[%clk 0:02:42]} 3. d4 {[%clk 0:02:54]}  cxd4 {[%clk 0:02:43]} 4. Nxd4 {[%clk 0:02:53]}  Nc6 {[%clk 0:02:38]} 5. Nc3 {[%clk 0:02:53]}  Bg7 {[%clk 0:02:38]} 6. Be3 {[%clk 0:02:53]}  Nf6 {[%clk 0:02:38]} 7. Bc4 {[%clk 0:02:51]}  O-O {[%clk 0:02:38]} 8. Bb3 {[%clk 0:02:46]}  Ng4 {[%clk 0:02:37]} 9. Qxg4 {[%clk 0:02:43]}  Nxd4 {[%clk 0:02:37]} 10. Qd1 {[%clk 0:02:43]}  Nc6 {[%clk 0:02:36]} 11. Qd2 {[%clk 0:02:34]}  Qa5 {[%clk 0:02:33]} 12. h4 {[%clk 0:02:08]}  h5 {[%clk 0:02:28]} 13. O-O-O {[%clk 0:02:06]}  d6 {[%clk 0:02:28]} 14. Nd5 {[%clk 0:01:59]}  Qxd2+ {[%clk 0:02:25]} 15. Rxd2 {[%clk 0:01:59]}  b5 {[%clk 0:02:07]} 16. Bg5 {[%clk 0:01:51]}  a5 {[%clk 0:01:23]} 17. Nxe7+ {[%clk 0:01:46]}  Nxe7 {[%clk 0:01:23]} 18. Bxe7 {[%clk 0:01:46]}  Re8 {[%clk 0:01:22]} 19. Bxd6 {[%clk 0:01:44]}  Bh6 {[%clk 0:01:20]} 20. f4 {[%clk 0:01:38]}  Bb7 {[%clk 0:01:14]} 21. Re1 {[%clk 0:01:30]}  Rxe4 {[%clk 0:00:54]} 22. Rxe4 {[%clk 0:01:28]}  Bxe4 {[%clk 0:00:55]} 23. g3 {[%clk 0:01:24]}  Rc8 {[%clk 0:00:47]} 24. Bd5 {[%clk 0:01:12]}  Bf5 {[%clk 0:00:46]} 25. Be5 {[%clk 0:01:02]}  Bf8 {[%clk 0:00:43]} 26. c3 {[%clk 0:00:54]}  b4 {[%clk 0:00:43]} 27. c4 {[%clk 0:00:52]}  Bc5 {[%clk 0:00:42]} 28. Bd4 {[%clk 0:00:48]}  Bd6 {[%clk 0:00:37]} 29. Kd1 {[%clk 0:00:28]}  Re8 {[%clk 0:00:34]} 30. Bf3 {[%clk 0:00:25]}  Rc8 {[%clk 0:00:31]} 31. b3 {[%clk 0:00:25]}  g5 {[%clk 0:00:29]} 32. hxg5 {[%clk 0:00:21]}  h4 {[%clk 0:00:29]} 33. Bf2 {[%clk 0:00:21]}  hxg3 {[%clk 0:00:24]} 34. Bxg3 {[%clk 0:00:22]}  Bc5 {[%clk 0:00:25]} 35. Bf2 {[%clk 0:00:20]}  Bf8 {[%clk 0:00:17]} 36. Bd4 {[%clk 0:00:20]}  Bb1 {[%clk 0:00:16]} 37. Rh2 {[%clk 0:00:17]}  Bg7 {[%clk 0:00:13]} 38. Bxg7 {[%clk 0:00:17]}  Kxg7 {[%clk 0:00:14]} 39. Rb2 {[%clk 0:00:15]}  Rd8+ {[%clk 0:00:13]} 40. Kc1 {[%clk 0:00:14]}  Bf5 {[%clk 0:00:13]} 41. Bd5 {[%clk 0:00:12]}  Re8 {[%clk 0:00:12]} 42. Rd2 {[%clk 0:00:12]}  Re1+ {[%clk 0:00:12]} 43. Rd1 {[%clk 0:00:11]}  Re2 {[%clk 0:00:12]} 44. Rd2 {[%clk 0:00:04]}  Re1+ {[%clk 0:00:12]} 45. Rd1 {[%clk 0:00:04]}  Re2 {[%clk 0:00:13]} 46. Rd2 {[%clk 0:00:05]}  Re1+ {[%clk 0:00:13]} 1/2-1/2


[Site "https://www.chess.com"]

[Event "Titled Tuesday Blitz August 08 Late 2023"]
[White "Colbow, Collin"]
[Black "Lacey, Patrick"]
[WhiteFideId "16201132"]
[BlackFideId "2032007"]
[WhiteElo "2601"]
[BlackElo "2417"]
[Result "1-0"]
[Round "3"]
[TimeControl "180+1"]
[Date "2023.08.08"]
[WhiteClock "0:01:45"]
[BlackClock "0:00:00"]
[Board "97"]

1. d4 {[%clk 0:03:00]}  d5 {[%clk 0:02:56]} 2. Bf4 {[%clk 0:02:52]}  Nc6 {[%clk 0:02:54]} 3. Nc3 {[%clk 0:02:50]}  e6 {[%clk 0:02:43]} 4. Nb5 {[%clk 0:02:48]}  Bd6 {[%clk 0:02:41]} 5. Nxd6+ {[%clk 0:02:49]}  cxd6 {[%clk 0:02:42]} 6. c3 {[%clk 0:02:48]}  Nf6 {[%clk 0:02:41]} 7. e3 {[%clk 0:02:48]}  O-O {[%clk 0:02:40]} 8. Bg3 {[%clk 0:02:48]}  Ne4 {[%clk 0:02:40]} 9. Bd3 {[%clk 0:02:47]}  f5 {[%clk 0:02:36]} 10. Ne2 {[%clk 0:02:44]}  Qe7 {[%clk 0:02:20]} 11. f3 {[%clk 0:02:38]}  Nf6 {[%clk 0:02:07]} 12. Qd2 {[%clk 0:02:37]}  Bd7 {[%clk 0:02:06]} 13. O-O-O {[%clk 0:02:36]}  Rac8 {[%clk 0:02:06]} 14. Kb1 {[%clk 0:02:37]}  Na5 {[%clk 0:02:04]} 15. Bf2 {[%clk 0:02:27]}  b5 {[%clk 0:02:02]} 16. Rdg1 {[%clk 0:02:25]}  Nc4 {[%clk 0:01:59]} 17. Qe1 {[%clk 0:02:25]}  Rb8 {[%clk 0:01:51]} 18. g4 {[%clk 0:02:24]}  fxg4 {[%clk 0:01:51]} 19. fxg4 {[%clk 0:02:25]}  Rfc8 {[%clk 0:01:48]} 20. g5 {[%clk 0:02:19]}  Ne4 {[%clk 0:01:48]} 21. Bxe4 {[%clk 0:02:20]}  dxe4 {[%clk 0:01:49]} 22. g6 {[%clk 0:02:20]}  h6 {[%clk 0:01:40]} 23. Bh4 {[%clk 0:02:21]}  Qe8 {[%clk 0:01:38]} 24. Ng3 {[%clk 0:02:16]}  b4 {[%clk 0:01:16]} 25. cxb4 {[%clk 0:02:10]}  d5 {[%clk 0:01:05]} 26. Nh5 {[%clk 0:02:04]}  a5 {[%clk 0:01:02]} 27. Bf6 {[%clk 0:02:02]}  Rxb4 {[%clk 0:00:56]} 28. Ka1 {[%clk 0:02:03]}  Nxb2 {[%clk 0:00:46]} 29. Bxg7 {[%clk 0:02:02]}  Qe7 {[%clk 0:00:22]} 30. Be5 {[%clk 0:02:02]}  Rc2 {[%clk 0:00:19]} 31. Nf6+ {[%clk 0:01:59]}  Qxf6 {[%clk 0:00:16]} 32. Bxf6 {[%clk 0:02:00]}  Nd3 {[%clk 0:00:16]} 33. Qb1 {[%clk 0:01:44]}  Rxb1+ {[%clk 0:00:00]} 34. Rxb1 {[%clk 0:01:45]} 1-0


[Site "https://www.chess.com"]